[Event "14th BPB Limburg Open 2022"]
[Site "Maastricht"]
[Date "2022.06.05"]
[Round "4.11"]
[White "De Rover, Yong Hoon"]
[Black "Kucharska, Honorata"]
[Result "1/2-1/2"]
[ECO "C18"]
[WhiteElo "2365"]
[BlackElo "2181"]
[Annotator "TA"]
[PlyCount "110"]
[EventDate "2022.06.03"]
[EventType "swiss"]
[EventCountry "NED"]
[SourceTitle "playchess.com"]
[Source "ChessBase"]
[SourceQuality "1"]
[TimeControl "7200+15"]

{[%evp 16,110,20,6,8,0,4,0,0,0,0,0,0,0,0,0,23,16,81,74,71,85,87,77,82,69,70,50,61,57,46,50,74,74,78,80,87,87,85,12,53,0,0,-70,-74,-74,-78,-91,-46,-46,-36,-53,-33,-94,-41,-136,-127,-252,-236,-300,-207,-373,-247,-293,-309,-371,-326,-1248,-1264,-1252,-1206,-877,-856,-849,-556,-939,-910,-872,-110,-116,-112,-180,-20,-20,0,-77,-20,-22,-6,-6,0,0,0,0,0,0,0]} 1. e4 {[%emt 0:01:59] Pavlovic,M} e6 {[%emt 0:00:03]} 2. d4 {[%emt 0:00:31]} d5 {[%emt 0:00:04]} 3. Nc3 {[%emt 0:00:28]} Bb4 {[%emt 0:00:08]} 4. e5 {[%emt 0:01:07]} c5 {[%emt 0:00:11]} 5. a3 {[%emt 0:00:55]} Bxc3+ {[%emt 0:00:15]} 6. bxc3 {[%emt 0:00:10]} Qa5 {[%emt 0:00:19]} 7. Bd2 {[%emt 0:03:47]} Qa4 {[%emt 0:00:44]} 8. Qb1 {[%emt 0:01:39]} c4 {[%emt 0:00:30]} 9. h4 {[%emt 0:06:15]} Nc6 {[%emt 0:01:44] C18: French: 3 Nc3 Bb4: Main line: 7 h4 and 7 Qg4.} 10. h5 {[%emt 0:01:33]} h6 {[%emt 0:00:28]} 11. Nf3 {[%emt 0:06:49]} Bd7 {[%emt 0:02:43]} 12. Be2 {[%emt 0:04:45]} (12. Qxb7 Rb8 13. Qc7 Nge7 $19) 12... O-O-O {[%emt 0:02:03]} 13. Nh4 {[%emt 0:06:48]} Nge7 {[%emt 0:02:58] [#]} 14. g3 $146 {[%emt 0:03:20]} ({Predecessor:} 14. Qc1 Rdf8 15. Bf4 Qa5 16. Bd2 g5 17. Nf3 f6 18. exf6 Rxf6 19. O-O Qc7 20. Nh2 {0-1 (38) Radjabov,T (2739)-Kovalenko,I (2694) Reykjavik 2015 CBM 170 [Pavlovic,M]}) 14... Rdg8 {[%emt 0:01:34]} 15. Qc1 {[%emt 0:08:59]} a6 {[%emt 0:15:26]} 16. Ng2 {[%emt 0:02:15]} g5 {[%emt 0:12:29]} (16... f6 $11 {remains equal.}) 17. Ne3 $16 {[%emt 0:02:00]} Rf8 {[%emt 0:04:58]} 18. Ng4 $1 {[%emt 0:05:47]} Ng8 {[%emt 0:01:27]} 19. f4 {[%emt 0:01:00]} gxf4 {[%emt 0:00:29]} 20. Bxf4 {[%emt 0:00:26]} Qa5 {[%emt 0:00:16] White must now prevent ...f5.} 21. Qe3 {[%emt 0:02:37]} Nce7 {[%emt 0:08:05]} 22. O-O {[%emt 0:03:40][%cal Rg4h6]} (22. Nxh6 $2 Nxh6 23. g4 (23. Bxh6 $2 Nf5 $19) 23... Nhg8 $19) 22... Nf5 {[%emt 0:03:36]} 23. Qd2 {[%emt 0:01:40]} Kb8 {[%emt 0:00:05]} 24. Nf6 {[%emt 0:02:48]} Bc6 {[%emt 0:00:04]} (24... Nxf6 $2 25. exf6+ Ka8 26. g4 $18) 25. g4 {[%emt 0:01:14]} Nfe7 {[%emt 0:00:32][%cal Bf5e7,Be7c8,Bc8d6,Bd6e4][%mdl 32]} 26. a4 {[%emt 0:12:39] White is much more active.} Ka8 {[%emt 0:01:41]} 27. Rfb1 {[%emt 0:00:30]} (27. Qc1 $16) 27... Nc8 {[%emt 0:04:13][%cal Oc8d6]} 28. Rb4 {[%emt 0:01:51]} (28. Nxg8 $14 Rfxg8 29. Rf1 (29. Bxh6 Qd8 $11)) 28... Nd6 $11 {[%emt 0:02:34] Hoping for ...Nxf6.} 29. Nxg8 {[%emt 0:08:40]} (29. exd6 Nxf6 30. Kg2 (30. Bxh6 $2 Rfg8 $19) 30... Qd8 $17) (29. Bf3 $11 Nxf6 30. exf6) 29... Ne4 $15 {[%emt 0:01:28]} 30. Qe3 {[%emt 0:00:19]} Rfxg8 {[%emt 0:00:07]} 31. Kh2 {[%emt 0:00:20]} ({Not} 31. Bxh6 $2 Rxh6 $1 {[%mdl 512]} 32. Kh2 (32. Qxh6 $2 {is the wrong capture.} Nxc3 33. Bf3 Qxb4 $19) 32... Qd8 $1 $19) 31... Qd8 {[%emt 0:08:40] Strongly threatening ...Qh4+.} 32. Kh3 {[%emt 0:02:12] Against Qh4+} f6 {[%emt 0:03:39]} 33. exf6 {[%emt 0:02:23]} Qxf6 {[%emt 0:00:18]} 34. Rf1 {[%emt 0:01:27]} ({White should try} 34. a5 $15) 34... Qe7 {[%emt 0:00:49]} (34... Qd8 $17) 35. Bf3 {[%emt 0:04:12] [#]} (35. a5 $15) 35... Ng5+ $1 $17 {[%emt 0:01:09]} 36. Bxg5 {[%emt 0:00:58]} (36. Kg3 $17) 36... Rxg5 $19 {[%emt 0:00:04]} 37. Re1 {[%emt 0:00:26]} Rf8 {[%emt 0:01:07][%cal Oe6e5]} 38. a5 $2 {[%emt 0:03:49]} (38. Rb6) 38... Qf6 {[%emt 0:07:43]} 39. Rf1 {[%emt 0:02:54]} Rfg8 {[%emt 0:00:40][%cal Og5g4] aiming for ...Rxg4!} 40. Be2 {[%emt 0:01:17]} Qg7 {[%emt 0:00:21]} 41. Rf2 $2 {[%emt 0:02:57]} ({Avoid the trap} 41. Qxe6 $2 {[#]} Rxh5+ $3 {[%mdl 512]} 42. Kg2 Re8 $19) (41. Rg1) 41... Rxg4 {[%emt 0:01:39] ( -> ...Rg3+)} 42. Rf8+ {[%emt 0:01:07]} Qxf8 {[%emt 0:00:43]} 43. Bxg4 {[%emt 0:00:07]} Qf1+ {[%emt 0:01:39]} 44. Kg3 {[%emt 0:00:19]} Qf5 {[%emt 0:01:39]} 45. Qe2 {[%emt 0:00:42]} Qxh5 {[%emt 0:00:43] And now ...Qh1 would win.} 46. Qxe6 {[%emt 0:01:19]} Qg6 $2 {[%emt 0:02:46]} (46... Qg5 $19 {and Black stays clearly on top.} 47. Rb6 Bb5 48. Rxb5 axb5) 47. Qxg6 $17 {[%emt 0:00:54]} Rxg6 {[%emt 0:00:04][%mdl 4096] Endgame KRB-KRB} 48. Kf4 {[%emt 0:00:10]} (48. Kf3 $17) 48... Ka7 $2 {[%emt 0:01:00]} (48... Rf6+ $19 49. Ke5 Rf1) 49. Rb1 $1 $11 {[%emt 0:00:17]} Rf6+ {[%emt 0:04:58]} 50. Ke3 {[%emt 0:01:03]} (50. Ke5 $11 Rg6 51. Kf4) 50... Be8 {[%emt 0:01:04]} ({Better is} 50... Ba4 $17 51. Rc1 b6) 51. Bf3 {[%emt 0:01:08] The position is equal.} Bf7 {[%emt 0:00:16]} 52. Rg1 $1 {[%emt 0:00:19]} Kb8 {[%emt 0:01:39]} 53. Rg7 {[%emt 0:00:26]} Kc8 {[%emt 0:00:32]} 54. Rh7 {[%emt 0:00:17]} Kd8 {[%emt 0:00:19]} 55. Rh8+ {[%emt 0:00:20]} Kc7 {[%emt 0:19:15] Whites escaped into a draw.  Weighted Error Value: White=0.49/Black=0.43} 1/2-1/2

[Event "14th BPB Limburg Open 2022"]
[Site "Maastricht"]
[Date "2022.06.05"]
[Round "4.12"]
[White "Rebers, Eugene"]
[Black "Kopylov, Daniel"]
[Result "0-1"]
[ECO "A03"]
[WhiteElo "2194"]
[BlackElo "2292"]
[Annotator "TA"]
[PlyCount "50"]
[EventDate "2022.06.03"]
[EventType "swiss"]
[EventCountry "NED"]
[SourceTitle "playchess.com"]
[Source "ChessBase"]
[SourceQuality "1"]
[TimeControl "7200+15"]

{[%evp 15,50,-6,-7,-15,-9,-27,-22,-20,-27,-26,0,0,-11,-17,-13,-5,58,-89,-97,-89,-91,-143,-100,-197,-195,-191,-196,-299,-296,-305,-296,-229,-163,-220,-110,-2687,-2199]} 1. f4 {[%emt 0:00:03]} Nf6 {[%emt 0:09:04]} 2. Nf3 {[%emt 0:00:05]} g6 {[%emt 0:01:09]} 3. g3 {[%emt 0:00:07]} Bg7 {[%emt 0:00:06]} 4. Bg2 {[%emt 0:00:06]} O-O {[%emt 0:00:05]} 5. O-O {[%emt 0:00:08]} c5 {[%emt 0:01:13]} 6. d3 {[%emt 0:00:07]} d5 {[%emt 0:06:44]} 7. c3 {[%emt 0:00:08] The main line 7.c3 scores better than 7.Qe1.} Nc6 {[%emt 0:00:07]} 8. Na3 {[%emt 0:00:07]} b6 {[%emt 0:08:16]} 9. Bd2 {[%emt 0:01:01] A03: Bird's Opening with 1...d5.} Bb7 {[%emt 0:01:35] [#]} 10. b4 $146 {[%emt 0:03:11]} ({Predecessor:} 10. Qe1 Rc8 11. Rd1 Qc7 12. h3 Rcd8 13. g4 e5 14. Nb5 Qe7 15. Nxe5 Nxe5 16. fxe5 Qxe5 {½-½ (93) Sattarov,B (2396)-Tashkhodzhaev,A (2125) Tashkent 2018}) 10... cxb4 {[%emt 0:05:58]} 11. cxb4 {[%emt 0:00:13] The position is equal.} Ng4 {[%emt 0:01:46]} 12. Rb1 {[%emt 0:02:54]} b5 {[%emt 0:05:14]} 13. e3 {[%emt 0:06:34]} Qb6 {[%emt 0:07:26]} 14. Qe2 {[%emt 0:08:59]} e5 {[%emt 0:04:20]} 15. fxe5 {[%emt 0:29:07]} d4 {[%emt 0:07:36]} (15... Ngxe5 $11 16. Nxe5 Nxe5) 16. e4 {[%emt 0:05:26]} (16. Nxd4 $14 {stays ahead.} Nxd4 17. Qxg4 Bxg2 18. Kxg2) 16... Ncxe5 $17 {[%emt 0:01:25]} 17. Nxe5 {[%emt 0:10:45]} Nxe5 {[%emt 0:00:23]} 18. Rfc1 {[%emt 0:14:55]} (18. Nc2 $142) 18... Rfc8 {[%emt 0:05:20] Black is more active.} 19. Rc5 {[%emt 0:08:04]} (19. Nc2 $17) 19... Rxc5 $19 {[%emt 0:01:13]} 20. bxc5 {[%emt 0:00:07]} Qxc5 {[%emt 0:00:41]} 21. Rxb5 {[%emt 0:07:55]} (21. Nxb5 {was called for.} Rb8 22. Qf1) 21... Qxa3 {[%emt 0:01:44]} 22. Rxb7 {[%emt 0:00:07]} Qxa2 {[%emt 0:00:43] [#] White must now prevent ...Bh6.} (22... Qxd3 23. Qxd3 Nxd3 24. e5 Nxe5 25. Rxf7 Kxf7 26. Bxa8 $15) 23. Qd1 {[%emt 0:01:52]} Nxd3 {[%emt 0:03:26]} 24. e5 {[%emt 0:01:18]} (24. Bf1 $142 Nc5 25. Rc7 Nxe4 26. Qf3) 24... Rc8 {[%emt 0:01:53]} ({Weaker is} 24... Bxe5 25. Qe2 Nc5 26. Qxe5 Qxd2 27. Rxf7 Qe3+ 28. Qxe3 dxe3 29. Bd5 $11) ({Not} 24... Nxe5 25. Rxf7 Rb8 26. Rb7 Rxb7 27. Bxb7) (24... Re8 $19 25. Qb3 Qxb3 26. Rxb3 Nxe5) 25. Qg4 $2 {[%emt 0:03:53][%mdl 8192]} (25. Bh3 $17 Re8 26. e6 fxe6 27. Qf1) 25... Rc1+ {[%emt 0:01:06] Weighted Error Value: White=0.82/Black=0.24 (precise)} ({Inferior is} 25... Rc2 26. Rb8+ Bf8 27. Qxd4 $11) 0-1

[Event "14th BPB Limburg Open 2022"]
[Site "Maastricht"]
[Date "2022.06.05"]
[Round "4.13"]
[White "Fischer, Daniel"]
[Black "Bentel, Robin"]
[Result "1-0"]
[ECO "B90"]
[WhiteElo "2367"]
[BlackElo "2218"]
[Annotator "TA"]
[PlyCount "69"]
[EventDate "2022.06.03"]
[EventType "swiss"]
[EventCountry "NED"]
[SourceTitle "playchess.com"]
[Source "ChessBase"]
[SourceQuality "1"]
[TimeControl "7200+15"]

{[%evp 13,69,25,17,9,21,2,16,18,15,15,15,13,38,22,42,22,16,20,69,72,69,43,67,74,87,90,158,135,147,149,181,148,166,173,233,151,248,241,269,278,360,361,341,363,409,418,414,420,402,403,1054,1047,1032,1025,988,504,969,927]} 1. e4 {[%emt 0:00:04]} c5 {[%emt 0:00:11]} 2. Nf3 {[%emt 0:00:07]} d6 {[%emt 0:00:11]} 3. d4 {[%emt 0:00:59]} cxd4 {[%emt 0:00:10]} 4. Nxd4 {[%emt 0:00:05]} Nf6 {[%emt 0:00:12]} 5. Nc3 {[%emt 0:00:04]} a6 {[%emt 0:00:20]} 6. Be3 {[%emt 0:00:42]} e5 {[%emt 0:00:25]} 7. Nb3 {[%emt 0:01:51]} Be7 {[%emt 0:00:38]} 8. h3 {[%emt 0:00:39] B90: Sicilian Najdorf: Unusual White 6th moves, 6 Be3 Ng4 and 6 Be3 e5.} Be6 {[%emt 0:01:31]} 9. f4 {[%emt 0:00:32]} exf4 {[%emt 0:00:52]} (9... Nc6 $5 {[%cal Rd6d5]}) 10. Bxf4 {[%emt 0:00:04] The position is equal.} Nc6 {[%emt 0:00:27]} 11. Qe2 {[%emt 0:00:41]} Nd7 {[%emt 0:01:18]} 12. O-O-O {[%emt 0:00:09]} Nde5 {[%emt 0:04:53]} 13. Kb1 {[%emt 0:02:07]} O-O {[%emt 0:01:25]} 14. g4 {[%emt 0:01:00]} b5 {[%emt 0:06:58]} 15. Nd5 {[%emt 0:10:19] [#]} a5 $146 {[%emt 0:21:48]} (15... Bg5 $11 {should be considered.}) ({Predecessor:} 15... b4 16. Qg2 a5 17. Bb5 Na7 18. Ba4 Nc4 19. g5 Bxd5 20. exd5 Nb6 21. Bc6 Nxc6 22. dxc6 {1-0 (31) Stukopin,A (2517)-Narayanan,S (2475) Pardubice 2013}) 16. Qxb5 $14 {[%emt 0:10:10]} a4 {[%emt 0:13:58]} 17. Nd4 {[%emt 0:07:37][%cal Bb3d4,Bd4b5,Bb5d6,Bd6c4][%mdl 32] White is much more active.} Bxd5 {[%emt 0:08:33]} 18. Qxd5 {[%emt 0:17:33] White leaves nothing to chance now.} (18. exd5 $6 Nxd4 19. Rxd4 a3 $11) 18... Ra5 {[%emt 0:13:26] [#]} 19. Nb5 $1 {[%emt 0:01:08][%cal Oh3h4]} (19. Nxc6 Rxd5 20. Nxe7+ (20. exd5 Nxc6 21. dxc6 Qb6 $17) 20... Qxe7 $17) 19... Bg5 {[%emt 0:01:59]} (19... Qb6 $142) 20. Bxg5 $16 {[%emt 0:09:19]} Qxg5 {[%emt 0:00:07]} 21. Qd2 $36 {[%emt 0:00:54][%mdl 2048] Black is under strong pressure.} (21. Qxd6 $2 Rd8 22. Qxd8+ Nxd8 $19) 21... Qe7 {[%emt 0:03:19]} 22. Be2 {[%emt 0:03:30]} (22. Nxd6 Rd8) 22... Rb8 {[%emt 0:03:49]} 23. Nxd6 {[%emt 0:08:36]} Qc7 {[%emt 0:02:42]} (23... Rc5 $142 24. Rhf1 Qc7) 24. Qe3 {[%emt 0:13:00]} a3 {[%emt 0:09:01] [#]} (24... Nd8 $16 25. h4 Rc5) 25. b3 $1 $18 {[%emt 0:00:29]} (25. Nb5 Rbxb5 26. Bxb5 Rxb5 $17) 25... Nb4 {[%emt 0:00:34]} 26. c3 {[%emt 0:03:52]} Nxa2 {[%emt 0:01:18]} 27. Kxa2 {[%emt 0:01:50] Chess con chili.} Rxb3 {[%emt 0:01:32]} 28. Nc4 {[%emt 0:09:41]} ({Stronger than} 28. Kxb3 Qb8+ 29. Nb5 Rxb5+ 30. Ka4 (30. Bxb5 $2 Qxb5+ 31. Kxa3 Nc4+ 32. Ka2 Qb2#) 30... Rb2 $17) 28... Rab5 {[%emt 0:21:18]} 29. Qd4 {[%emt 0:02:49] Threatening mate with Qd8+.} ({Resist} 29. Nxe5 Rb2+ 30. Ka1 Rxe2 $18) 29... Rb8 {[%emt 0:03:18] Inhibits Qd8+.} (29... Rb2+ $2 30. Nxb2 Rxb2+ 31. Ka1 $18) 30. Qxe5 {[%emt 0:05:29]} Rb2+ {[%emt 0:00:16]} 31. Ka1 {[%emt 0:00:01]} (31. Kxa3 $2 {is a self mate.} R8b3+ 32. Ka4 Qc6+ 33. Ka5 Qa8#) 31... Qb7 {[%emt 0:00:34] [#]} (31... Qxe5 $142 32. Nxe5 Rxe2) 32. Qa5 $1 {[%emt 0:01:33] Rd8+ would kill now. White is clearly winning.} h6 {[%emt 0:00:52]} 33. Rd8+ {[%emt 0:01:12]} Rxd8 {[%emt 0:00:02]} 34. Qxd8+ {[%emt 0:00:05]} Kh7 {[%emt 0:00:03] ( -> ...Qb3)} 35. Qd1 {[%emt 0:00:57] Weighted Error Value: White=0.05 (flawless) /Black=0.23 (precise)} 1-0

[Event "14th BPB Limburg Open 2022"]
[Site "Maastricht"]
[Date "2022.06.05"]
[Round "4.14"]
[White "Decoster, Frederic"]
[Black "Bruil, Rembrandt"]
[Result "1/2-1/2"]
[ECO "B35"]
[WhiteElo "2293"]
[BlackElo "2122"]
[Annotator "TA"]
[PlyCount "88"]
[EventDate "2022.06.03"]
[EventType "swiss"]
[EventCountry "NED"]
[SourceTitle "playchess.com"]
[Source "ChessBase"]
[SourceQuality "1"]
[TimeControl "7200+15"]

{[%evp 14,88,24,26,41,28,23,27,22,13,17,21,33,32,28,36,37,37,27,32,27,-18,-9,-23,0,0,0,0,0,0,0,0,0,0,0,0,-10,-10,-7,-8,0,0,0,-8,0,-10,-10,-11,0,0,0,0,0,-8,0,-8,0,-8,0,0,0,0,0,0,0,0,0,0,0,0,0,0,0,0,0,-43,0]} 1. e4 {[%emt 2:00:30]} c5 {[%emt 2:00:30]} 2. Nf3 {[%emt 0:00:15]} Nc6 {[%emt 0:00:15]} 3. d4 {[%emt 0:00:15]} cxd4 {[%emt 0:00:15]} 4. Nxd4 {[%emt 0:00:15]} g6 {[%emt 0:00:15]} 5. Nc3 {[%emt 0:00:15]} Bg7 {[%emt 0:00:15]} 6. Be3 {[%emt 0:00:15]} Nf6 {[%emt 0:00:15]} 7. Bc4 {[%emt 0:00:15]} O-O {[%emt 0:00:15]} 8. Bb3 {[%emt 0:00:15]} Re8 {[%emt 0:00:15] B35: Sicilian: Accelerated Dragon with 5 Nc3: main line.} 9. Nxc6 {[%emt 0:00:15]} dxc6 {[%emt 0:00:15]} 10. Qxd8 {[%emt 0:00:15]} Rxd8 {[%emt 0:00:15] White has an edge.} 11. a4 {[%emt 0:00:15] Prevents b5.} Ng4 {[%emt 0:00:15]} 12. Bg5 {[%emt 0:00:15]} h6 {[%emt 0:00:15]} 13. Bxe7 {[%emt 0:00:15]} Bxc3+ {[%emt 0:00:15]} 14. bxc3 {[%emt 0:00:15]} Re8 {[%emt 0:00:15]} 15. Ba3 {[%emt 0:00:15]} Rxe4+ {[%emt 0:00:15] [#]} 16. Kd2 $146 {[%emt 0:00:15] [#] aiming for f3.} ({Predecessor:} 16. Kf1 Re8 17. f3 Ne3+ 18. Kf2 Bf5 19. Bc1 Nd5 20. Bxh6 Nxc3 21. Rae1 Be6 22. Bxe6 Rxe6 23. Rxe6 fxe6 {1-0 (57) Simacek,P (2502)-Zwardon,V (2455) Czech Republic 2018}) 16... Re8 {[%emt 0:00:15]} (16... Nxf2 $2 17. Rhf1 $18) 17. Rhe1 {[%emt 0:00:15]} (17. f3 $5 {[%cal Rf3g4]} Rd8+ 18. Ke2 Re8+ 19. Kf1 $14) 17... Be6 {[%emt 0:00:15]} 18. Re2 {[%emt 0:00:15]} Rad8+ {[%emt 0:00:15]} ({Resist} 18... Nxh2 19. Rae1 $14) 19. Ke1 {[%emt 0:00:15][%cal Bd2e1,Be1e2,Be2f3,Bf3g3,Bg3f4][%mdl 32]} Bxb3 {[%emt 0:00:15]} (19... Nxh2 20. f3 $16) 20. cxb3 {[%emt 0:00:15]} Rxe2+ {[%emt 0:00:15]} ({Don't play} 20... Nxh2 21. f3 $16) 21. Kxe2 $11 {[%emt 0:00:15][%mdl 4096] Endgame KRB-KRN} Re8+ {[%emt 0:00:15]} 22. Kf3 {[%emt 0:00:15]} Ne5+ {[%emt 0:00:15]} 23. Kg3 {[%emt 0:00:15]} Rd8 {[%emt 0:00:15] Inhibits Rd1.} 24. Re1 {[%emt 0:00:15]} Rd3+ {[%emt 0:00:15]} 25. Re3 {[%emt 0:00:15]} Rxe3+ {[%emt 0:00:15]} 26. fxe3 {[%emt 0:00:15] KB-KN} f6 {[%emt 0:00:15]} 27. e4 {[%emt 0:00:15]} Kf7 {[%emt 0:00:15]} 28. Kf4 {[%emt 0:00:15]} h5 {[%emt 0:00:15]} 29. h3 {[%emt 0:00:15]} Ke6 {[%emt 0:00:15]} 30. Ke3 {[%emt 0:00:15]} g5 {[%emt 0:00:15]} 31. c4 {[%emt 0:00:15]} Ng6 {[%emt 0:00:15]} 32. Kf3 {[%emt 0:00:15]} Nf4 {[%emt 0:00:15]} 33. Bc5 {[%emt 0:00:15]} b6 {[%emt 0:00:15]} 34. Be3 {[%emt 0:00:15]} Nd3 {[%emt 0:00:15]} 35. a5 {[%emt 0:00:15]} Ne5+ {[%emt 0:00:15]} 36. Ke2 {[%emt 0:00:15][%cal Oe3b6] Strongly threatening Bxb6!} c5 {[%emt 0:00:15]} 37. axb6 {[%emt 0:00:15]} axb6 {[%emt 0:00:15]} 38. Bd2 {[%emt 0:00:15]} Nc6 {[%emt 0:00:15] [#] White must now prevent ...Nd4+.} 39. Kd3 {[%emt 0:00:15]} Nd4 {[%emt 0:00:15]} 40. b4 {[%emt 0:00:15]} Nc6 {[%emt 0:00:15]} 41. bxc5 {[%emt 0:00:15]} bxc5 {[%emt 0:00:15]} 42. Be3 {[%emt 0:00:15]} Ne5+ {[%emt 0:00:15]} 43. Kc3 {[%emt 0:00:15]} Kd6 {[%emt 0:00:15]} 44. Bf2 {[%emt 0:00:15]} Nd7 {[%emt 0:00:15] Weighted Error Value: White=0.05 (flawless) /Black=0.02 (flawless)} (44... h4 $5 {[%cal Re5g6]}) 1/2-1/2

[Event "14th BPB Limburg Open 2022"]
[Site "Maastricht"]
[Date "2022.06.05"]
[Round "5.2"]
[White "Gurevich, Mikhail"]
[Black "Donchenko, Alexander"]
[Result "0-1"]
[ECO "A28"]
[WhiteElo "2573"]
[BlackElo "2599"]
[Annotator "TA"]
[PlyCount "122"]
[EventDate "2022.06.03"]
[EventType "swiss"]
[EventCountry "NED"]
[SourceTitle "playchess.com"]
[Source "ChessBase"]
[SourceQuality "1"]
[TimeControl "7200+15"]

{[%evp 11,122,0,11,-8,0,0,0,-4,0,-1,-6,-18,-20,-34,-20,-21,-4,-17,-2,-7,-11,-25,-20,-29,-26,-16,-31,-33,-11,-44,-19,-38,-26,-40,-36,-83,-68,-92,-87,-98,-89,-85,-81,-104,0,7,2,0,54,0,0,0,5,0,0,0,0,0,0,0,0,-152,-124,-138,-87,-340,-335,-361,-357,-358,-34,-333,-316,-289,-287,-201,-243,-274,-194,-181,-87,-87,-87,-87,-87,-87,-87,-87,-87,-96,-87,-709,-87,-1176,-1166,-1114,-879,-2377,-2215,-29962,-29937,-12797,-10061,-29984,-29985,-29984,-29986,-29986,-29987,-29987,-29988,-29992,-29986]} 1. c4 {[%emt 0:00:02]} Nf6 {[%emt 0:00:11]} 2. Nc3 {[%emt 0:00:27]} e5 {[%emt 0:00:22]} 3. Nf3 {[%emt 0:00:39]} Nc6 {[%emt 0:00:17]} 4. a3 {[%emt 0:00:07]} d5 {[%emt 0:00:36]} 5. cxd5 {[%emt 0:00:07]} Nxd5 {[%emt 0:00:05]} 6. Qc2 {[%emt 0:00:04]} Nxc3 {[%emt 0:00:31]} 7. bxc3 {[%emt 0:00:38] A28: English Opening: Four Knights Variation.} Bd6 {[%emt 0:00:43]} 8. g3 {[%emt 0:08:31]} O-O {[%emt 0:00:34]} 9. Bg2 {[%emt 0:00:04] The position is equal.} Re8 {[%emt 0:00:23]} (9... f5 {with more complications.} 10. O-O Qe7 11. d3 f4) 10. d3 {[%emt 0:05:14]} Bf5 {[%emt 0:00:50]} 11. e4 {[%emt 0:00:16]} Be6 {[%emt 0:01:23] [#]} 12. Ng5 $146 {[%emt 0:00:07]} ({Predecessor:} 12. O-O Bc5 13. Be3 Bxe3 14. fxe3 Na5 15. d4 Nc4 16. Rfe1 c6 17. a4 Qf6 18. Qe2 {0-1 (33) Raphael,A-Hoppe,A freechess.de 2021}) 12... Bd7 {[%emt 0:00:38]} 13. O-O {[%emt 0:00:52]} h6 {[%emt 0:01:07]} 14. Nf3 {[%emt 0:00:04]} Na5 {[%emt 0:00:34]} 15. d4 {[%emt 0:03:22]} Qe7 {[%emt 0:05:23]} 16. Nxe5 {[%emt 0:09:46]} Bxe5 {[%emt 0:00:14]} 17. dxe5 {[%emt 0:00:07]} Qxe5 {[%emt 0:00:26]} 18. Bf4 {[%emt 0:00:09]} Qc5 {[%emt 0:01:23]} 19. Qb2 {[%emt 0:00:06]} Qb5 {[%emt 0:14:44]} 20. Qc2 {[%emt 0:18:56]} c5 {[%emt 0:01:53]} 21. Rfd1 {[%emt 0:01:07]} Qa4 {[%emt 0:06:50]} 22. Qe2 {[%emt 0:00:08]} Bf5 {[%emt 0:14:21][%cal Rf5e4,Bd7f5,Bf5e6,Be6b3][%mdl 32]} 23. f3 {[%emt 0:03:06]} (23. Re1 $15) 23... Be6 $1 $17 {[%emt 0:01:33]} 24. Qe3 {[%emt 0:10:57][%cal Of4h6]} Bb3 {[%emt 0:07:20]} 25. Rd3 {[%emt 0:01:33]} b6 {[%emt 0:08:27]} 26. Bh3 {[%emt 0:02:23]} Nc4 {[%emt 0:04:24][%csl LRa3,LRe3]} 27. Qc1 {[%emt 0:02:12]} Ne5 {[%emt 0:01:22] Prevents Bd7.} (27... Rad8 $17 28. Bxh6 f6 29. Be6+ Kh7 30. Bf5+ (30. Rxd8 Rxd8 31. Bf5+ Kg8 $17) 30... Kh8 31. Rxd8 Rxd8) 28. Bxe5 $11 {[%emt 0:02:25]} Rxe5 {[%emt 0:00:49]} 29. Qd2 {[%emt 0:03:06]} Re7 {[%emt 0:07:15]} (29... Rf8 $11) 30. Rd6 {[%emt 0:00:17]} (30. Bd7 $14 Qa6 31. a4) 30... Rf8 {[%emt 0:02:42]} 31. Bf5 {[%emt 0:03:47]} Be6 {[%emt 0:02:16]} 32. g4 {[%emt 0:00:07]} b5 {[%emt 0:04:36]} 33. Kh1 {[%emt 0:07:37]} a5 {[%emt 0:02:06]} 34. Rg1 {[%emt 0:04:32]} Qxa3 {[%emt 0:04:08]} 35. g5 $1 {[%emt 0:06:12]} Qa2 $1 {[%emt 0:02:24]} 36. Qf4 {[%emt 0:13:56]} ({Only move:} 36. gxh6 $11 Qxd2 37. Rxg7+ Kh8 38. Rh7+ (38. Rxd2 Bxf5 39. exf5 a4 $17) 38... Kg8 39. Rg7+ (39. Rxd2 Bxf5 40. Rg7+ Kh8 $17) 39... Kh8 40. Rh7+ (40. Rxd2 Bxf5 41. exf5 a4 $17) 40... Kg8 41. Rg7+ (41. Rxd2 Bxf5 42. Rg7+ Kh8 $17)) 36... h5 $17 {[%emt 0:04:07] aiming for ...Qc4.} 37. g6 {[%emt 0:02:27]} fxg6 {[%emt 0:01:22]} 38. Qg5 {[%emt 0:00:32][%mdl 8192] [#]} (38. Rd2 $17 Qc4 39. Qg5 Bxf5 40. Qxe7) 38... Bxf5 $1 $19 {[%emt 0:00:29]} 39. Qxe7 {[%emt 0:03:23]} (39. exf5 Qe2) 39... Qe2 {[%emt 0:00:49]} 40. Rd8 {[%emt 0:00:10]} Qxf3+ {[%emt 0:01:10]} 41. Rg2 {[%emt 0:00:05]} Bg4 {[%emt 0:02:11]} 42. Rxf8+ {[%emt 0:01:06]} Qxf8 {[%emt 0:00:02] Dancing on a razor blade.} 43. Qxf8+ {[%emt 0:00:24]} Kxf8 {[%emt 0:00:01][%mdl 4096] Endgame KR-KB} 44. Ra2 {[%emt 0:00:11]} a4 {[%emt 0:08:54]} 45. c4 {[%emt 0:01:42]} Be6 {[%emt 0:04:26]} ({Inferior is} 45... bxc4 46. Rxa4 Be2 47. Ra5 $11) (45... Bf3+ $19 46. Kg1 b4 47. Rxa4 Bxe4) 46. Rf2+ $17 {[%emt 0:00:07]} Ke7 {[%emt 0:00:01]} 47. cxb5 {[%emt 0:00:06]} a3 {[%emt 0:00:08][%cal Ba4a3,Ba3a2][%mdl 32]} 48. Rf3 {[%emt 0:00:05]} a2 {[%emt 0:00:03]} 49. Ra3 {[%emt 0:00:03]} Kd6 {[%emt 0:03:03]} 50. Ra6+ {[%emt 0:05:04]} Kc7 {[%emt 0:00:47] And now ...g5 would win.} 51. Kg2 $2 {[%emt 0:01:20][%mdl 8192] [#]} (51. e5 $17) 51... Bb3 $2 {[%emt 0:01:08]} (51... g5 $1 $19 {is more deadly.} 52. Rc6+ Kb7) 52. Kf2 $2 {[%emt 0:00:18][%mdl 8192] [#]} (52. e5 $17) 52... g5 $1 $19 {[%emt 0:01:27]} 53. Ke3 {[%emt 0:00:11]} g4 {[%emt 0:00:11] Strongly threatening ...h4.} 54. Kf4 {[%emt 0:00:07]} c4 {[%emt 0:00:11][%cal Bc5c4,Bc4c3,Bc3c2][%mdl 32]} 55. e5 {[%emt 0:00:21]} c3 {[%emt 0:00:06]} 56. Ke3 {[%emt 0:00:05]} h4 {[%emt 0:00:14][%cal Bh5h4,Bh4h3,Bh3h2][%mdl 32] ( -> ...c2)} 57. Kd3 {[%emt 0:00:04]} c2 {[%emt 0:00:10] Black mates.} 58. Kd2 {[%emt 0:00:05]} g3 {[%emt 0:00:32]} 59. hxg3 {[%emt 0:00:05]} h3 {[%emt 0:00:19]} 60. e6 {[%emt 0:00:08]} h2 {[%emt 0:00:15]} 61. e7 {[%emt 0:00:08]} Kd7 {[%emt 0:00:14] Weighted Error Value: White=0.67/Black=0.23 (precise)} 0-1